Workbook

Sheet Basics
A1: Let's assume that everyone in the economy is risk-neutral.
A2: We need to assume that there exists a continuously evolving instantaneous rate of interest, r.
A3: In this setting, the value of any T-period 0-coupon bond, with $1 Face-value is:
A13: Implication 1:
B14: If the instantaneous interest rate is a constant (and known to be so) then the yield on any T-period bond is r.
A16: Of course to get more results, beyond Implication 1, we have to specify a law of motion for r--that describes probabilistically (and quantitatively)--how r can move around in the future.
A18: The most basic model of short-rate dynamics is Vasicek's: | N18: The transition density in discrete time: | R18: Normal with the following conditional mean and variance:
N19: E[r(t) | r(t-1)] = theta + (r(t-1) - theta) * exp(-k * delta-t)
N20: Example: | P20: delta-t | Q20: E(r(t+delta-t)) | S20: Var(r+ delta-t) | T20: sigma(r+ delta-t)
A21: Parameter Definitions: | P21: =B44 -> 0.002739726027 | Q21: =$B$40+($B$39-$B$40)*EXP(-$B$41*P21) -> 0.03002189381 | S21: =$B$42^2/(2*$B$41)*(1-EXP(-2*$B$41*P21)) -> 2.733729913e-07 | T21: =SQRT(S21) -> 0.0005228508308
B22: q | C22: Long-term mean of the short-rate. (annualized) | P22: =1/52.14 -> 0.0191791331 | Q22: =$B$40+($B$39-$B$40)*EXP(-$B$41*P22) -> 0.03015226198 | S22: =$B$42^2/(2*$B$41)*(1-EXP(-2*$B$41*P22)) -> 1.88878489e-06 | T22: =SQRT(S22) -> 0.001374330706
B23: k | C23: Pull toward the long-term mean. | P23: =1/12 -> 0.08333333333 | Q23: 0.03064493015 | S23: 7.80166756e-06 | T23: 0.002793146534
B24: s | C24: standard deviation of short-rate (annualized) | P24: =1/4 -> 0.25 | Q24: 0.03181269247 | S24: 2.060499712e-05 | T24: 0.004539272753
P25: =1/2 -> 0.5 | Q25: 0.03329679954 | S25: 3.441693974e-05 | T25: 0.005866595243
A26: Mathematical notation: | P26: 1 | Q26: 0.03550671036 | S26: 4.988146763e-05 | T26: 0.007062681334
B27: dr | C27: The instantaneous change in the short rate, r. | P27: 5 | Q27: 0.03981684361 | S27: 6.247903359e-05 | T27: 0.007904368007
B28: dt | C28: The instantaneous passage of time (deterministic, or non-random) | P28: 10 | Q28: 0.03999664537 | S28: 6.249999297e-05 | T28: 0.007905693706
B29: dw | C29: Standard Brownian Motion (the way randomness is introduced). | P29: 100 | Q29: 0.04 | S29: 6.25e-05 | T29: 0.00790569415
A31: Notes: | N31: Steady state mean: | P31: theta | Q31: =B40 -> 0.04
B32: If r equals theta, then there is no expected change in the short rate--the short rate is expected to be theta at any future date.
B33: If r exceeds theta, then the short rate is expected to fall (toward theta) in the future. | N33: Var[ r(t) | r(t-1) ] = sigma^2 / (2 * k) * (1 - exp(-2*k*delta-t))
B34: Conversely, if r is less than theta, then the short-rate is expected to rise (toward theta) in the future.
N35: Steady state variance: sigma^2 / (2*k) | S35: =B42^2/(2*B41) -> 6.25e-05
A37: To develop intuition about how this process works, and what the implications for different parameter values affect possible short-rate paths, we can simulate.
B38: I wrote the macro OnePdemo attached to this spreadsheet to take a single path drawn from this process.
A39: r | B39: 0.03
A40: q | B40: 0.04
A41: k | B41: 0.8
A42: s | B42: 0.01
A43: T | B43: 10 | C43: (in years)
A44: Delta-t | B44: =1/365 -> 0.002739726027 | C44: (in years)
A46: 0 | B46: 0.03
A47: 1 | B47: 0.02991695439
A48: 2 | B48: 0.02991185793
A49: 3 | B49: 0.02937254718
A50: 4 | B50: 0.02949721653
A51: 5 | B51: 0.02950195569
A52: 6 | B52: 0.02937039573
A53: 7 | B53: 0.0286146915
A54: 8 | B54: 0.02811640272
A55: 9 | B55: 0.02857740219
A56: 10 | B56: 0.0284828961
A57: 11 | B57: 0.02822686447
A58: 12 | B58: 0.02769617012
A59: 13 | B59: 0.02728662657
A60: 14 | B60: 0.02730180413
A61: 15 | B61: 0.02688498409
A62: 16 | B62: 0.02707759311
A63: 17 | B63: 0.0279510234
A64: 18 | B64: 0.027844451
A65: 19 | B65: 0.02698131047
A66: 20 | B66: 0.02668697432
A67: 21 | B67: 0.02700494052
A68: 22 | B68: 0.02683776083
A69: 23 | B69: 0.02788055654
A70: 24 | B70: 0.02743198586
A71: 25 | B71: 0.02794839151
A72: 26 | B72: 0.02739349602
A73: 27 | B73: 0.0278241831
A74: 28 | B74: 0.02806049421
A75: 29 | B75: 0.02842938796
A76: 30 | B76: 0.02868256607
A77: 31 | B77: 0.02903312951
A78: 32 | B78: 0.02916291967
A79: 33 | B79: 0.02883389703
A80: 34 | B80: 0.02905561548
A81: 35 | B81: 0.02948409288
A82: 36 | B82: 0.02999533732
A83: 37 | B83: 0.03059361142
A84: 38 | B84: 0.03198806368
A85: 39 | B85: 0.03228450885
A86: 40 | B86: 0.03228547496
A87: 41 | B87: 0.03141298254
A88: 42 | B88: 0.03104988059
A89: 43 | B89: 0.03105121499
A90: 44 | B90: 0.03093558486
A91: 45 | B91: 0.03014995868
A92: 46 | B92: 0.02929548434
A93: 47 | B93: 0.02970046531
A94: 48 | B94: 0.02932576303
A95: 49 | B95: 0.02925474874
A96: 50 | B96: 0.02927190769
A97: 51 | B97: 0.02962440235
A98: 52 | B98: 0.02886865254
A99: 53 | B99: 0.02883503584
A100: 54 | B100: 0.02957326016
A101: 55 | B101: 0.02888575672
A102: 56 | B102: 0.02909967059
A103: 57 | B103: 0.02917861619
A104: 58 | B104: 0.02907397426
A105: 59 | B105: 0.02897708518
A106: 60 | B106: 0.0290545026
A107: 61 | B107: 0.0285671541
A108: 62 | B108: 0.02811684423
A109: 63 | B109: 0.02879528733
A110: 64 | B110: 0.0293604931
A111: 65 | B111: 0.02914536783
A112: 66 | B112: 0.02883300481
A113: 67 | B113: 0.03018953574
A114: 68 | B114: 0.0302582497
A115: 69 | B115: 0.03100360231
A116: 70 | B116: 0.03217141529
A117: 71 | B117: 0.03306505889
A118: 72 | B118: 0.03296061776
A119: 73 | B119: 0.03374269042
A120: 74 | B120: 0.03349211347
A121: 75 | B121: 0.03314465861
A122: 76 | B122: 0.03370276057
A123: 77 | B123: 0.03473038697
A124: 78 | B124: 0.03480389613
A125: 79 | B125: 0.03552028385
A126: 80 | B126: 0.0346885909
A127: 81 | B127: 0.03477281828
A128: 82 | B128: 0.03427406752
A129: 83 | B129: 0.03430394649
A130: 84 | B130: 0.03379774957
A131: 85 | B131: 0.03319838783
A132: 86 | B132: 0.03332860515
A133: 87 | B133: 0.03303219283
A134: 88 | B134: 0.03253032521
A135: 89 | B135: 0.03338049056
A136: 90 | B136: 0.0334263761
A137: 91 | B137: 0.03349116841
A138: 92 | B138: 0.03361395792
A139: 93 | B139: 0.03351864697
A140: 94 | B140: 0.03345471247
A141: 95 | B141: 0.03343793502
A142: 96 | B142: 0.03380716741
A143: 97 | B143: 0.03345257818
A144: 98 | B144: 0.03349583579
A145: 99 | B145: 0.03258132475
A146: 100 | B146: 0.03312003124
A147: 101 | B147: 0.03296705442
A148: 102 | B148: 0.03296666622
A149: 103 | B149: 0.03388273385
A150: 104 | B150: 0.03398172111
A151: 105 | B151: 0.03435708195
A152: 106 | B152: 0.03467074778
A153: 107 | B153: 0.03496565729
A154: 108 | B154: 0.03455752907
A155: 109 | B155: 0.03470082783
A156: 110 | B156: 0.03465715742
A157: 111 | B157: 0.03522468293
A158: 112 | B158: 0.0354560868
A159: 113 | B159: 0.03492181977
A160: 114 | B160: 0.03560214448
A161: 115 | B161: 0.035749492
A162: 116 | B162: 0.03587865728
A163: 117 | B163: 0.03584075233
A164: 118 | B164: 0.03703835303
A165: 119 | B165: 0.03684065525
A166: 120 | B166: 0.03749531911
A167: 121 | B167: 0.03629236745
A168: 122 | B168: 0.03570064021
A169: 123 | B169: 0.0357935622
A170: 124 | B170: 0.03567921013
A171: 125 | B171: 0.03563335831
A172: 126 | B172: 0.03577013819
A173: 127 | B173: 0.03554874981
A174: 128 | B174: 0.03640507522
A175: 129 | B175: 0.03596864672
A176: 130 | B176: 0.03599650076
A177: 131 | B177: 0.03585237899
A178: 132 | B178: 0.03564264131
A179: 133 | B179: 0.03454021768
A180: 134 | B180: 0.03391426226
A181: 135 | B181: 0.03337928745
A182: 136 | B182: 0.03358971189
A183: 137 | B183: 0.03274379594
A184: 138 | B184: 0.03328783439
A185: 139 | B185: 0.03389212453
A186: 140 | B186: 0.03426336239
A187: 141 | B187: 0.03399167797
A188: 142 | B188: 0.03320925186
A189: 143 | B189: 0.03295599168
A190: 144 | B190: 0.03332991491
A191: 145 | B191: 0.03370640808
A192: 146 | B192: 0.03385730812
A193: 147 | B193: 0.03357446936
A194: 148 | B194: 0.03359123657
A195: 149 | B195: 0.03325021362
A196: 150 | B196: 0.03231580825
A197: 151 | B197: 0.03241936301
A198: 152 | B198: 0.0319956729
A199: 153 | B199: 0.03182630983
A200: 154 | B200: 0.03137177644
A201: 155 | B201: 0.0309744458
A202: 156 | B202: 0.03103522982
A203: 157 | B203: 0.0303790653
A204: 158 | B204: 0.03108409323
A205: 159 | B205: 0.03064152824
A206: 160 | B206: 0.03080893617
A207: 161 | B207: 0.03100350759
A208: 162 | B208: 0.03087099634
A209: 163 | B209: 0.03181607728
A210: 164 | B210: 0.03225794837
A211: 165 | B211: 0.03157034899
A212: 166 | B212: 0.03150114026
A213: 167 | B213: 0.03154929572
A214: 168 | B214: 0.03172118169
... 3482 more rows

Sheet RNBondpr
A1: Under the Vasicek model, the assumption is that the instantaneous interest rate follows the following mean-reverting stochastic process:
A6: If the economy is risk averse, then the only thing that affects the price of a long-term, 0-coupon bond is the interest rate path over that bond's term.
A8: Here is the value of a $1 0-coupon boind that matures at time T:
A14: In order to implement this in discrete time (Monte Carlo), we need the transition density: the density of r(t+1) conditional on r(t).
B15: The reason that this is not jjust the continuous-time analog is that we have to consider the discrete path.
B16: Consider for example the case where k = 2, r = .05, theta = .04, and sigma = .015. If delta-t is one year and we simply took the drift in the diffusion at
B17: face value, then we would have an expectation that the expected r in one year is 6%. This is obviously wrong as we deon't expect
B18: the interest rate to overshoot the long-run mean (theta).
A20: The density of r(t) conditional on r(0) is Normal with mean
A22: So the correct expectation of the instantaneous interest rate after one year in the above example is: | J22: =0.04+0.05*EXP(-2*1) -> 0.04676676416
C23: similarly, the variance of the rate at time t + tau conditional on the rate at time t is: | K23: =((0.015^2)/(2*2))*(1-EXP(-2*2*1)) -> 5.521974531e-05
D24: and the conditional standard deviation is: | K24: =SQRT(K23) -> 0.007430998944
A25: Term | B25: =4 -> 4 | C25: (in years)
A26: r | B26: 0.04
A27: q | B27: 0.04
A28: k | B28: 0.8
A29: s | B29: 0.03
A30: Delta-t | B30: =1/365 -> 0.002739726027 | C30: (in years)
A32: nsims | B32: 10000
A35: The VB module Bondprice uses the above inputs to compute the zero-coupon bond price.
A38: Price: | B38: 0.85356838255 | C38: (Price per $1 face value of 0-coupon default-free bond.)
B39: =VALUE(B38) -> 0.8535683826 | C39: (I don't fully understand why VBA writes the price out as a text value, but this makes it a number)
A40: YTM: | B40: =LN(B39)/-B25 -> 0.03958240495
A43: Exercises:
B44: You should develop intuition about the Vasicek model in a risk-neutral setting.
B45: This should include:
D46: plotting out yield curves for given r(0), theta, k, and sigma.
D47: evaluate the effect on the base-case yield curve of a change in each of the parameters in turn (sigma, k, and theta).
D48: evaluate the effect on the base-case yield curve of changes in r.
E49: Look at r less than theta.
E50: Look at r greater than theta.
B52: In particular, there are 2 effects that you should understand:
C53: Convexity (This effect is larger for a bigger sigma, cet par., and for longer term, cet. par.)
C54: Expectations (Theta is the long-run mean of the short-rate.)

Sheet RA World
A2: We now extend the model from the previous worksheet to allow for a risk premium associated with term.
B3: This would be the case if investors were not indifferent to buying a 5-Year zero-coupon bond, or buying a 1-year bond, five years in a row--for the same expected holding period return.
A5: Recall the assumed interest rate process in the Vasicek model:
A8: In the past worksheet we looked at bond prices in this model, under the assumption that all investors are risk-neutral.
A10: In general, investors are risk-averse, so we have to adapt the model to handle this.
A12: The modeling structure we find convenient is the same as we use in Black & Scholes: Expectations in the equivalent risk-neutral world.
A13: In order to use this powerful method, we have to find the unique equivalent risk-neutral world.
A15: We adjust the drift of the short-rate to reflect the effect of a risk premium in the market.
A18: This r* process is the risk-neutralized short-rate process, such that when we plug it into the fundamental pricing equation, we will get the correct bond prices (under the assumptions of the Vasicek model).
A26: We can use Monte Carlo, as we did in the previous worksheet, but use r* instead of r.
B27: Note that all this involves is changing the theta to theta-hat, and then everything else is the same as in the risk-neutral case.
D28: The process with theta-hat as the long-run mean is the answer to the question: What would the interest rate process be
D29: so that when we take expectations we get a yield curve that has the same risk premium as the actual yierld curve.
D31: A couple of points to note about the risk-poremium parameter, lambda:
D32: 1. If lambda is 0, then there is no risk premium associated with the term of interest rates.
D33: 2. lambda can be positive or negative.
E34: If lambda is positive, this means that there is a liquidity premium. Investors require--and borrowers are willing to pay--
E35: a premium above expected future rates to lend and borrow for a longer term.
E36: If lamba is negative, this means that there is a solidity premium. Investors require--and borrowers are willing to pay--
E37: a premium above expected future rates to lend and borrow for a shorter term.
D38: For the most part we expect lambda to be positive.
B39: We can obtain the value of a 0-coupon bond using Monte Carlo, as before but we use theta-hat instead of theta.
A42: However, since the transition densities are normal, the solution to this expectation is available in closed form.
A44: This is a one-factor model, since there is only one source of randomness -- the instantaneous short rate of interest, r.
A45: It is a member of the affine class of term structure models.
A46: To see why, let's look at a closed-form expression for the value of a T-period 0-coupon bond at time t:
A47: Let:
E48: and,
A52: Now we have that:
G53: and we know:
A57: So this means that we can write the T-period spot rate:
A59: I have coded the expression for the value of a zero-coupon bond in the VBA function VasZero1F().
A61: Example: | B61: r(0) | C61: 0.04 | D61: This input to the model is a "state variable"
B62: k | C62: 1
B63: sigma | C63: 0.05 | D63: These inputs to the model are "parameters"
B64: theta | C64: 0.055 | E64: Half life = ln(2) / k: | G64: =LN(2)/C62 -> 0.6931471806 | H64: -- it takes this many years for the short rate to cover half the distance from its
B65: lambda | C65: 0.01 | H65: current level to the long run mean on average.
B66: theta-hat | C66: =C64+C65/C62 -> 0.065 | D66: In terms of bond prices, this is the relevant long-run mean of the short-rate* process.
A70: T | B70: r | C70: V(t,T)
A71: =1/12 -> 0.08333333333 | B71: =LN(C71)/-A71 -> 0.04101060489 | C71: =VasZero1F($C$62,$C$66,$C$63,$C$61,A71) -> 0.9965882828
A72: =3/12 -> 0.25 | B72: 0.04285839713 | C72: =VasZero1F($C$62,$C$66,$C$63,$C$61,A72) -> 0.9893425976
A73: =6/12 -> 0.5 | B73: 0.04525372899 | C73: 0.9776272031 | D73: 0.04530032355
A74: 1 | B74: 0.04898687198 | C74: 0.95219363
A75: 2 | B75: 0.05371574557 | C75: 0.8981380508
A76: 3 | B76: 0.05641558609 | C76: 0.8443005395 | D76: 0.05684180869
A77: 5 | B77: 0.05915532644 | C77: 0.7439535848
A78: 7 | B78: 0.06044935969 | C78: 0.6549833144
A79: 9 | B79: 0.06118086408 | C79: 0.5765877284
A80: 10 | B80: 0.06143760215 | C80: 0.5409783489
A81: 15 | B81: 0.06220833379 | C81: 0.3933226518 | D81: 0.06292833382
A82: 20 | B82: 0.06259375 | C82: 0.2859681037
A83: 30 | B83: 0.06297916667 | C83: 0.1511662582
A84: 40 | B84: 0.063171875 | C84: 0.07990834409
A85: 50 | B85: 0.0632875 | C85: 0.0422405339
A86: 100 | B86: 0.06351875 | C86: 0.001743475054
A87: 10000 | B87: 0.0637476875 | C87: 1.403818129e-277

Sheet 2Factor
A1: If the term structure did follow a 1-factor Vasicek model, then all rates would be perfectly correlated, and long-term rates would be very stable.
A2: To get more realistic yield curve dynamics we need multiple factors.
A3: The idea in a 3-factor Vasicek model is that the instantaneous short rate is the sum of factor 1, factor 2, and factor 3.
A4: Where each factor follows its own mean reverting process:
K6: etc.
A14: Let's look at a 2-factor model. Both factors evolve according to the Vasicek law of motion. So we need 4 parameters for each factor, as well as the correlation between the factors, for a total of 9 parameters.
A15: In particular, one of the factors is a ``short-term'' factor in that it has a high k, and the other is a long-term factor in that it has a low k.
A16: Parameter | B16: Factor 1 | C16: Factor 2
A17: k | B17: 1.6 | C17: 0.2
A18: theta | B18: 0.02 | C18: 0.008
A19: lambda | B19: 0.0075 | C19: 0.003
A20: sigma | B20: 0.01 | C20: 0.02
A21: theta-hat | B21: =B18+B19/B17 -> 0.0246875 | C21: =C18+C19/C17 -> 0.023
A22: factor value | B22: 0.008 | C22: 0.005 | D22: According to the model, it is these 2 factors whose movement through time causes the yield curve to change.
A23: Also, the factors can be correlated, so we need a ninth parameter: rho.
A24: rho: | B24: -0.4755 | C24: This is the instantaneous correlation between shocks to the 2 factors.
A25: delta-t | B25: 0.5 | C25: (expressed in terms of number of years)
A27: The negative correlation between the factors seems to be required by the data. The reason for this is that the long end of the yield curve has a lot of volatility -- relative to the short-end.
A29: There is a closed-form expression for a bond price in the multi-factor Vasicek model. I have programmed the 2-factor model into a User-defined function, VasZero
A30: which is linked to this spreadsheet. | D30: You should change the parameters and state variables to see the effect of each on the yield curve, and its dynamics.
A31: Term (Years): | C31: 0.25 | D31: 0.5 | E31: 1 | F31: 1.5 | G31: 2 | H31: 2.5 | I31: 3 | J31: 3.5 | K31: 4 | L31: 4.5 | M31: 5 | N31: 5.5 | O31: 6 | P31: 6.5 | Q31: 7 | R31: 7.5 | S31: 8 | T31: 8.5 | U31: 9 | V31: 9.5 | W31: 10 | X31: 10.5 | Y31: 11 | Z31: 11.5 | AA31: 12 | AB31: 12.5 | AC31: 13 | AD31: 13.5 | AE31: 14 | AF31: 14.5 | AG31: 15 | AH31: 15.5 | AI31: 16 | AJ31: 16.5 | AK31: 17 | AL31: 17.5 | AM31: 18 | AN31: 18.5 | AO31: 19 | AP31: 19.5 | AQ31: 20 | AR31: 20.5 | AS31: 21 | AT31: 21.5 | AU31: 22 | AV31: 22.5 | AW31: 23 | AX31: 23.5 | AY31: 24 | AZ31: 24.5 | BA31: 25 | BB31: 25.5 | BC31: 26 | BD31: 26.5 | BE31: 27 | BF31: 27.5 | BG31: 28 | BH31: 28.5 | BI31: 29 | BJ31: 29.5 | BK31: 30
B32: df: | C32: =VasZero(C31,$B$22,$B$18,$B$17,$B$20,$C$19,$C$22,$C$18,$C$17,$C$20,$C$19,$B$24) -> 0.9960381919 | D32: =VasZero(D31,$B$22,$B$18,$B$17,$B$20,$C$19,$C$22,$C$18,$C$17,$C$20,$C$19,$B$24) -> 0.9909497314 | E32: 0.9786377945 | F32: 0.9646858133 | G32: 0.9498737482 | H32: 0.9345945871 | I32: 0.919061102 | J32: 0.9033996107 | K32: 0.8876927675 | L32: 0.8719994225 | M32: 0.8563641378 | N32: 0.8408219943 | O32: 0.8254012138 | P32: 0.8101247347 | Q32: 0.7950112559 | R32: 0.7800759922 | S32: 0.7653312532 | T32: 0.7507869077 | U32: 0.7364507637 | V32: 0.7223288841 | W32: 0.7084258521 | X32: 0.6947449942 | Y32: 0.6812885696 | Z32: 0.6680579304 | AA32: 0.6550536579 | AB32: 0.6422756792 | AC32: 0.6297233662 | AD32: 0.6173956205 | AE32: 0.6052909465 | AF32: 0.5934075132 | AG32: 0.5817432083 | AH32: 0.5702956844 | AI32: 0.559062398 | AJ32: 0.5480406448 | AK32: 0.5372275883 | AL32: 0.5266202862 | AM32: 0.5162157116 | AN32: 0.5060107727 | AO32: 0.4960023289 | AP32: 0.4861872053 | AQ32: 0.4765622045 | AR32: 0.467124118 | AS32: 0.4578697346 | AT32: 0.4487958485 | AU32: 0.4398992662 | AV32: 0.4311768124 | AW32: 0.4226253344 | AX32: 0.4142417071 | AY32: 0.4060228357 | AZ32: 0.3979656596 | BA32: 0.3900671544 | BB32: 0.3823243342 | BC32: 0.374734253 | BD32: 0.3672940069 | BE32: 0.3600007341 | BF32: 0.3528516169 | BG32: 0.3458438815 | BH32: 0.338974799 | BI32: 0.3322416854 | BJ32: 0.3256419019 | BK32: 0.319172855
B33: spot rate: | C33: =LN(1/C32)/C31 -> 0.01587870726 | D33: =LN(1/D32)/D31 -> 0.01818294216 | E33: 0.02159367991 | F33: 0.02396854179 | G33: 0.02571309991 | H33: 0.02705697615 | I33: 0.0281342238 | J33: 0.0290257962 | K33: 0.02978239461 | L33: 0.03043700386 | M33: 0.03101191973 | N33: 0.031522782 | O33: 0.03198094851 | P33: 0.03239493073 | Q33: 0.03277128657 | R33: 0.03311519176 | S33: 0.03343081602 | T33: 0.03372157791 | U33: 0.0339903219 | V33: 0.0342394448 | W33: 0.03447098801 | X33: 0.03468670624 | Y33: 0.03488811988 | Z33: 0.0350765554 | AA33: 0.03525317719 | AB33: 0.03541901285 | AC33: 0.03557497364 | AD33: 0.03572187114 | AE33: 0.03586043095 | AF33: 0.03599130413 | AG33: 0.03611507676 | AH33: 0.03623227795 | AI33: 0.03634338673 | AJ33: 0.03644883791 | AK33: 0.03654902705 | AL33: 0.03664431484 | AM33: 0.03673503084 | AN33: 0.03682147676 | AO33: 0.03690392931 | AP33: 0.03698264273 | AQ33: 0.03705785099 | AR33: 0.03712976972 | AS33: 0.03719859798 | AT33: 0.03726451977 | AU33: 0.03732770539 | AV33: 0.03738831268 | AW33: 0.03744648811 | AX33: 0.03750236775 | AY33: 0.03755607814 | AZ33: 0.03760773713 | BA33: 0.03765745455 | BB33: 0.03770533287 | BC33: 0.0377514678 | BD33: 0.03779594879 | BE33: 0.03783885957 | BF33: 0.03788027852 | BG33: 0.03792027912 | BH33: 0.0379589303 | BI33: 0.03799629679 | BJ33: 0.03803243938 | BK33: 0.03806741526

Sheet Exercises
A1: 1. Modify the Monte Carlo Visual Basic program, BondPrice to account for risk-aversion.
A3: 2. Use the program you wrote to "verify" the closed-form solution in the previous worksheet.
A5: 3. Write a user-defined function that asks for the parameters and short-rate as inputs, and provides the yield-to-maturity as output.
A7: 4. Develop intuition about the Vasicek model, by evaluating the effect on the yield curve of changing each of the inputs in turn (relative to a base case).
B8: ---- In particular, the yield curve depends on three things:
C9: 1. Expectations (How does the current state variable compare to its (risk-adjusted) long-run mean?
C10: 2. Convexity (We are averaging over a non-linear function). The more non-linear (bigger sigma) the bigger this effect will be.
C11: 3. Risk.
D12: Zero lambda: This is the risk-neutral case. Here the yield on a T-period bond only depends on expected average bond prices between now and T.
D13: Positive lambda: Liquidity premium: Yields on a T-period bond are higher than they would be in the risk-neutral case to compensate lenders for
F14: the risk inherent in tying up their loans (relative to the flexibility inherent in a sequence of short-term loans).
D15: Negative lambda: Solidity premium. Here, yields on a T-period bond are lower than they would be in the risk-neutral case to compensate lenders for
F16: the risk of having to roll over their loans at uncertain future rates over the T period.
D18: The model is general enough to deal with all three cases. In the data (US interest rates most periods), we tend to find a liquidity premium.
